[Event "Fredericia Candidate 2022"]
[Site "Fredericia"]
[Date "2022.05.29"]
[Round "5.3"]
[White "Thuesen, Mogens"]
[Black "Madsen, Michael B."]
[Result "1-0"]
[ECO "B56"]
[WhiteElo "2255"]
[BlackElo "2084"]
[Annotator "TA"]
[PlyCount "127"]
[EventDate "2022.05.25"]
[EventType "swiss"]
[EventCountry "DEN"]
[SourceTitle "playchess.com"]
[Source "ChessBase"]
[SourceQuality "1"]
[TimeControl "40/5400+30:1800+30"]

{[%evp 10,127,39,49,35,43,41,0,12,13,7,10,4,-7,5,0,0,0,0,0,6,-8,10,0,59,61,69,62,141,114,123,121,266,272,227,128,113,125,134,118,183,181,168,111,321,321,321,321,512,306,304,203,278,97,91,15,25,19,67,55,65,55,55,62,62,55,55,56,128,87,108,111,121,97,97,91,141,106,191,181,182,147,167,173,158,145,193,190,312,323,320,320,388,397,425,414,441,409,363,310,1112,1070,1825,1745,1872,1896,1889,1659,29979,29980,29980,29978,29980,29981,29980,29982,29985,29986,29988,29978]} 1. e4 {[%emt 0:01:17]} c5 {[%emt 0:00:30]} 2. Nf3 {[%emt 0:00:05][%cal Bg1f3,Bf3d4,Bd4b5][%mdl 32]} d6 {[%emt 0:00:13]} 3. d4 {[%emt 0:00:37]} Nf6 {[%emt 0:00:10]} 4. Nc3 {[%emt 0:00:13]} cxd4 {[%emt 0:00:14]} 5. Nxd4 {[%emt 0:00:29]} Bd7 {[%emt 0:02:04]} 6. Be2 {[%emt 0:06:37]} e5 {[%emt 0:00:11] B56: Classical Sicilian: Unusual Lines.} 7. Ndb5 {[%emt 0:03:56]} Bc6 {[%emt 0:00:22]} 8. Nd5 {[%emt 0:07:58]} Nxd5 {[%emt 0:00:12] The position is equal.} 9. exd5 {[%emt 0:00:05]} Bxb5 {[%emt 0:00:06]} 10. Bxb5+ {[%emt 0:00:06]} Nd7 {[%emt 0:00:06] [#]} 11. c4 $146 {[%emt 0:02:55]} ({Predecessor:} 11. O-O Be7 12. Qg4 g6 13. Bh6 f5 14. Qb4 Kf7 15. Be3 f4 16. Bd2 Rc8 17. Rac1 {1-0 (49) Van der Wiel,J (2535)-Kupreichik,V (2510) Yerevan 1996}) 11... a6 {[%emt 0:02:20]} 12. Ba4 {[%emt 0:01:49]} Be7 {[%emt 0:00:19]} 13. O-O {[%emt 0:00:14]} O-O {[%emt 0:01:41]} 14. Be3 {[%emt 0:00:54]} f5 {[%emt 0:19:45]} 15. f3 {[%emt 0:05:05]} Rc8 {[%emt 0:16:23]} 16. Rc1 {[%emt 0:02:45]} Bf6 {[%emt 0:13:16]} (16... Nb6 $11) 17. b4 $14 {[%emt 0:01:09]} a5 {[%emt 0:03:10]} 18. a3 {[%emt 0:01:12][%cal Ba2a3,Ba3b4,Bb4c5][%mdl 32]} Rf7 {[%emt 0:12:26]} (18... Bh4 $14) 19. c5 $1 $16 {[%emt 0:06:26]} axb4 {[%emt 0:06:29]} 20. axb4 {[%emt 0:00:07]} dxc5 {[%emt 0:00:06]} (20... f4 $16 21. Bf2 Bh4) 21. bxc5 $18 {[%emt 0:01:33]} Bg5 {[%emt 0:00:06]} 22. Qd2 {[%emt 0:04:42]} (22. Bxg5 $1 $18 Qxg5 23. d6 Rxc5 24. f4 exf4 25. Rxc5 Nxc5 26. Be8) 22... Bxe3+ $16 {[%emt 0:01:54]} 23. Qxe3 {[%emt 0:00:05]} f4 {[%emt 0:00:12]} 24. Qf2 {[%emt 0:04:58]} Qa5 {[%emt 0:02:12] [#]} (24... b6 $16) 25. Bb3 $1 $18 {[%emt 0:09:06] c6 is the strong threat.} (25. Bxd7 $6 Rxd7 26. Rfd1 Qa3 $16) 25... Qa3 {[%emt 0:03:18]} 26. Qa2 {[%emt 0:25:38]} ({Worse is} 26. c6 Qxb3 27. cxd7 Rd8 $15) ({Better is} 26. Bc4 $18) 26... Ra8 $2 {[%emt 0:07:12]} (26... Qxa2 $16 27. Bxa2 Kf8) 27. Qxa3 {[%emt 0:01:17]} Rxa3 {[%emt 0:00:08]} 28. Bc4 {[%emt 0:00:20]} Ra5 {[%emt 0:06:39]} (28... Nxc5 $2 29. d6 $18) (28... Kf8 $142 29. d6 Ra4) 29. d6 {[%emt 0:02:16] Strongly threatening Ra1.} Rxc5 {[%emt 0:00:08]} 30. Rfd1 {[%emt 0:05:45]} ({Not} 30. Bxf7+ Kxf7 31. Rxc5 Nxc5 $16) 30... Kf8 {[%emt 0:00:35]} 31. Ra1 $2 {[%emt 0:00:35]} Rc8 $16 {[%emt 0:00:38]} 32. Ra7 {[%emt 0:01:21]} Rf6 $11 {[%emt 0:01:27]} 33. Bb5 {[%emt 0:01:28]} Nc5 {[%emt 0:01:01]} (33... Rd8 $11) 34. Rd5 {[%emt 0:00:33]} b6 $1 {[%emt 0:00:45]} 35. d7 $36 {[%emt 0:02:54][%cal Rd7c8][%mdl 2048] White has some pressure. White is much more active.} Rd8 {[%emt 0:00:11]} 36. Rxe5 {[%emt 0:00:39] And now Re8+ would win.} Re6 {[%emt 0:00:27]} 37. Rf5+ {[%emt 0:00:19]} Ke7 {[%emt 0:00:26][%cal Rd8d7]} 38. Rxf4 {[%emt 0:00:26]} Nxd7 {[%emt 0:00:41] Black is on the road to losing.} (38... Re1+ $14 39. Kf2 Rb1) 39. Rb7 {[%emt 0:00:46]} Rd6 {[%emt 0:00:28]} 40. h4 {[%emt 0:00:50]} Ke6 {[%emt 0:00:09]} 41. Bc4+ {[%emt 0:04:10]} Ke5 {[%emt 0:02:56]} 42. Rf7 {[%emt 0:02:10]} Kd4 {[%emt 0:04:26]} (42... Nc5 $142) 43. Bb5 {[%emt 0:04:55]} Ne5 {[%emt 0:00:45]} (43... Nc5 $16 {was called for.}) 44. Rxg7 $18 {[%emt 0:00:58]} Kc5 {[%emt 0:08:14]} 45. Rg5 {[%emt 0:06:34]} Rd5 {[%emt 0:00:22]} 46. Be2 {[%emt 0:02:16]} h6 {[%emt 0:01:05]} 47. Rf5 {[%emt 0:00:21]} R8d6 {[%emt 0:00:55]} (47... Nc6 $16 48. Rff7 Rd2) 48. g4 {[%emt 0:01:58]} Nc6 {[%emt 0:01:22] [#]} (48... Re6 $142 49. Rc7+ Rc6) 49. Rxd5+ $1 {[%emt 0:01:04]} Rxd5 {[%emt 0:00:26][%mdl 4096] Endgame KRB-KRN} 50. Kf2 {[%emt 0:00:29]} Nd4 {[%emt 0:00:36]} 51. Rc7+ {[%emt 0:01:18]} Kb4 {[%emt 0:01:36]} 52. f4 {[%emt 0:02:07][%cal Bf3f4,Bf4f5][%mdl 32]} b5 {[%emt 0:00:42]} 53. Ke3 {[%emt 0:01:44]} Rd8 {[%emt 0:09:29]} 54. Bd3 {[%emt 0:02:28] aiming for f5.} Kb3 $2 {[%emt 0:05:09]} (54... Ne6) 55. f5 {[%emt 0:00:46]} b4 {[%emt 0:00:12]} 56. g5 {[%emt 0:01:34]} hxg5 {[%emt 0:00:15]} 57. hxg5 {[%emt 0:00:06]} Kb2 {[%emt 0:00:10]} 58. Rc4 {[%emt 0:00:40]} Nxf5+ {[%emt 0:01:01]} 59. Bxf5 {[%emt 0:00:09] KRB-KR. White mates.} b3 {[%emt 0:00:07]} 60. Rb4 {[%emt 0:01:34]} Kc3 {[%emt 0:00:13]} 61. Rb7 {[%emt 0:00:14]} b2 {[%emt 0:00:35]} 62. g6 {[%emt 0:00:20]} Rf8 {[%emt 0:00:51]} 63. Kf4 {[%emt 0:00:09]} Kd2 {[%emt 0:00:17]} 64. Ke4 {Weighted Error Value: White=0.20 (precise) /Black=0.34} 1-0

[Event "Fredericia Candidate 2022"]
[Site "Fredericia"]
[Date "2022.05.29"]
[Round "5.4"]
[White "Zander, Emil"]
[Black "Andries, Alf"]
[Result "1/2-1/2"]
[ECO "B67"]
[WhiteElo "2018"]
[BlackElo "2049"]
[Annotator "TA"]
[PlyCount "35"]
[EventDate "2022.05.25"]
[EventType "swiss"]
[EventCountry "DEN"]
[SourceTitle "playchess.com"]
[Source "ChessBase"]
[SourceQuality "1"]
[TimeControl "40/5400+30:1800+30"]

{[%evp 18,20,24,22,40]} 1. e4 {[%emt 0:00:01]} c5 {[%emt 0:00:12]} 2. Nf3 {[%emt 0:00:15]} Nc6 {[%emt 0:00:04]} 3. d4 {[%emt 0:00:07]} cxd4 {[%emt 0:00:03]} 4. Nxd4 {[%emt 0:00:10]} Nf6 {[%emt 0:00:03]} 5. Nc3 {[%emt 0:00:08]} d6 {[%emt 0:00:05]} 6. Bg5 {[%emt 0:00:28]} e6 {[%emt 0:00:05]} 7. Qd2 {[%emt 0:00:12]} a6 {[%emt 0:00:05]} 8. O-O-O {[%emt 0:00:22]} Bd7 $1 {[%emt 0:00:06] The main line 8...Bd7 scores better than 8...h6.} 9. f3 {[%emt 0:01:38]} Be7 {[%emt 0:02:03]} 10. h4 {[%emt 0:01:13]} h6 {[%emt 0:00:15] [#] B67: Sicilian: Richter-Rauzer: 7...a6 8 0-0-0 Bd7, lines without 9 f4 Be7.} {Predecessor:} 11. Be3 $146 h5 12. Bd3 Ne5 13. Kb1 b5 14. Bg5 Qc7 15. f4 Neg4 16. Rde1 b4 17. Nd1 a5 18. Nf3 {½-½ (57) Fedoseev,V (2683)-Ponomariov,R (2675) Hengshui 2019} 1/2-1/2

[Event "Fredericia Candidate 2022"]
[Site "Fredericia"]
[Date "2022.05.29"]
[Round "5.6"]
[White "Petersen, Steen"]
[Black "Stentebjerg-Hansen, Per"]
[Result "1-0"]
[ECO "B01"]
[WhiteElo "2103"]
[BlackElo "2191"]
[Annotator "TA"]
[PlyCount "41"]
[EventDate "2022.05.25"]
[EventType "swiss"]
[EventCountry "DEN"]
[SourceTitle "playchess.com"]
[Source "ChessBase"]
[SourceQuality "1"]
[TimeControl "40/5400+30:1800+30"]

{[%evp 9,41,36,43,12,18,9,16,13,9,10,13,7,31,32,39,0,0,0,5,4,37,18,60,49,52,50,47,51,48,48,34,33,211,206]} 1. e4 {[%emt 0:00:08]} d5 {[%emt 0:00:06]} 2. exd5 {[%emt 0:00:15]} Qxd5 {[%emt 0:00:06]} 3. Nc3 {[%emt 0:00:09]} Qd6 {[%emt 0:00:02]} 4. d4 {[%emt 0:01:57]} Nf6 {[%emt 0:00:16]} 5. Nf3 {[%emt 0:00:30]} c6 {[%emt 0:00:28]} 6. Bc4 {[%emt 0:01:56] B01: Scandinavian Defence.} Bg4 $1 {[%emt 0:00:08][%cal Bc8g4,Bg4h5,Bh5g6][%mdl 32]} 7. Be3 {[%emt 0:00:36]} e6 {[%emt 0:00:32]} (7... Qb4 {[#]} 8. Bxf7+ $1 {[%mdl 512]} Kxf7 9. Ne5+ Kg8 10. Nxg4 $18) 8. h3 {[%emt 0:05:17] The position is equal.} Bh5 {[%emt 0:00:19]} 9. g4 {[%emt 0:00:51]} Bg6 {[%emt 0:00:17]} 10. Ne5 {[%emt 0:00:17]} Nd5 {[%emt 0:06:01]} (10... Nbd7 $5 {[%cal Rd7e5]}) 11. Bxd5 {[%emt 0:04:46]} exd5 {[%emt 0:03:17] [#]} 12. Qd2 $146 {[%emt 0:02:43]} (12. f4 $5 {[%cal Rf4f5]}) ({Predecessor:} 12. h4 f6 13. Nxg6 hxg6 14. Qd3 Kf7 15. h5 g5 16. O-O-O Na6 17. Rde1 Kg8 18. Qf5 {1-0 (37) Villalba,M (2149)-Spata,G (2330) Asuncion 2011}) 12... Nd7 {[%emt 0:09:00]} 13. O-O-O {[%emt 0:14:44]} O-O-O {[%emt 0:04:07]} ({But not} 13... Nxe5 14. dxe5 Qd7 15. f4 $16) 14. Bf4 {[%emt 0:08:24][%cal Oe5f7] Threatens to win with Nxf7!} Qb4 {[%emt 0:03:16]} 15. Nxd7 {[%emt 0:02:36]} Kxd7 {[%emt 0:08:01]} 16. Bg3 {[%emt 0:08:06]} Kc8 {[%emt 0:05:23]} ({Not} 16... Bd6 17. a3 Qb6 18. Bxd6 Kxd6 19. Na4 $18) 17. Rhe1 {[%emt 0:04:51]} ({Reject} 17. Qf4 Bd6 18. Qf3 Rhe8 $11) 17... Bd6 {[%emt 0:05:31]} 18. a3 {[%emt 0:08:46]} Qa5 {[%emt 0:04:02]} 19. Bxd6 {[%emt 0:00:22]} Rxd6 {[%emt 0:00:05]} 20. Kb1 {[%emt 0:00:28] Hoping for f4.} h5 $2 {[%emt 0:05:17] [#]} (20... Qd8 $14) 21. Ne4 $1 {[%emt 0:00:49][%mdl 512] Weighted Error Value: White=0.07 (flawless) /Black=0.27 (precise)} 1-0